Cogmind - Beta 15 @@@ ROGUE MODE // 2025.10.17 @ 12:00:03 Player: Tereza Result: Destroyed by Shrapnel Trap Performance ------------- Evolutions (0) 0 Regions Visited (2) 400 Robots Destroyed (15) 75 Value Destroyed (417) 417 Prototype IDs (3) 60 Alien Tech Used (0) 0 Bonus (0) 0 TOTAL SCORE: 952 Bonus ------- None Cogmind --------- Core Integrity 0/250 Matter 179/300 Energy 96/100 System Corruption 0% Temperature Cool (2) Movement Walking (190) Ox1 Location -10/Subcaves Parts ------- > --- POWER (1) -------- (None) > --- PROPULSION (2) --- Aluminum Leg Aluminum Leg > --- UTILITY (2) ------ Large Storage Unit Propulsion Shielding > --- WEAPON (2) ------- Assault Rifle Assault Rifle > --- INVENTORY (15) --- Ion Engine Aluminum Leg Aluminum Leg Aluminum Leg Heat Sink Large Matter Pod (150) Propulsion Shielding Light Armor Plating EM Pulse Gun Medium Laser Assault Rifle Light Cannon Peak State ------------ > --- POWER ------------ Light Ion Engine > --- PROPULSION ------- Aluminum Leg Aluminum Leg > --- UTILITY ---------- Large Storage Unit Seismic Detector > --- WEAPON ----------- Medium Laser Light Assault Rifle > --- INVENTORY -------- Ion Engine Light Treads Aluminum Leg Aluminum Leg Wheel Wheel Small Matter Pod EM Pulse Gun Light Cannon Light Cannon [Rating: 8] Favorites ----------- Power Light Ion Engine Engine Light Ion Engine Propulsion Aluminum Leg Leg Aluminum Leg Utility Large Storage Unit Device Seismic Detector Storage Large Storage Unit Protection Propulsion Shielding Weapon Light Assault Rifle Energy Gun Medium Laser Ballistic Gun Light Assault Rifle Ballistic Cannon Light Cannon Build | -11 -10 -10 ------- Run | Yrd Mat Sub Slots Evolved . | . . . Power . | . . . Propulsion . | . . . Utility . | . . . Weapon . | . . . Parts Attached 14 | 7 4 3 Power 1 | 1 . . Engine 1 | 1 . . Core . | . . . Reactor . | . . . Propulsion 4 | 2 1 1 Treads . | . . . Leg 4 | 2 1 1 Wheel . | . . . Hover . | . . . Flight . | . . . Utility 4 | 2 2 . Device 1 | 1 . . Storage 2 | 1 1 . Processor . | . . . Hackware . | . . . Protection 1 | . 1 . Artifact . | . . . Weapon 5 | 2 1 2 Energy Gun 1 | 1 . . Energy Cannon . | . . . Ballistic Gun 3 | 1 . 2 Ballistic Cannon 1 | . 1 . Launcher . | . . . Special Weapon . | . . . Impact Weapon . | . . . Slashing Weapon . | . . . Piercing Weapon . | . . . Special Melee Weapon . | . . . Unidentified Prototypes . | . . . Parts Lost 5 | . 1 4 Power 1 | . . 1 Propulsion 1 | . . 1 Utility 1 | . 1 . Weapon 2 | . . 2 Highest Loss Streak 3 | . 1 3 To Critical Strikes . | . . . Average Backups 12 | 5 12 13 Power . | . 1 1 Propulsion 4 | 3 5 3 Utility 1 | . 1 4 Weapon 4 | 1 4 5 Tool/Special . | . . . Unused Backups 16 | . 6 10 Power 1 | . . 1 Propulsion 7 | . 5 2 Utility 5 | . 1 4 Weapon 3 | . . 3 Tool/Special . | . . . Average Slot Usage (%) 94 | . 96 85 Engine 11 | . 14 . Leg 27 | . 28 27 Device 6 | . 8 . Storage 14 | . 14 14 Protection 4 | . 2 14 Energy Gun 5 | . 6 . Ballistic Gun 15 | . 14 19 Ballistic Cannon 7 | . 7 7 Peak Build Rating 8 | 7 8 8 Average Rating 7 | 4 7 7 On Entrance 5 | . 7 8 Naked Turns . | . . . Heaviest Build 28 | 12 28 28 Greatest Support 20 | 20 20 20 Greatest Overweight (x) 2 | 2 1 1 Average Overweight (x) . | . . 1 Largest Inventory Capacity 15 | 8 15 15 Average Capacity 13 | 7 14 15 Most Carried 15 | 7 15 15 Average Carried 12 | 5 12 13 Final Capacity 15 | 8 15 15 Final Carried 15 | 6 15 12 Class Distribution -------------------- 100% | Mutant Dominant Class ---------------- Mutant | -10/Materials Mutant | -10/Subcaves Resources | -11 -10 -10 ----------- Run | Yrd Mat Sub Matter Collected 661 | 276 381 4 Remotely . | . . . Salvage Created 593 | 11 450 132 Parts 36 | 3 26 7 Haulers Intercepted 2 | . 2 . Recyclers Shooed . | . . . Parts Field Recycled . | . . . Retrieved Matter . | . . . Parts Self-Destructed . | . . . Prevented . | . . . Kills | -11 -10 -10 ------- Run | Yrd Mat Sub Combat Hostiles Destroyed 10 | . 7 3 Guns 5 | . 3 2 Cannons 5 | . 4 1 Classes Destroyed 6 | 1 4 1 Tunneler 1 | 1 . . Hauler 2 | . 2 . Recycler 1 | . 1 . Operator 1 | . 1 . Grunt 7 | . 7 . Subdweller 3 | . . 3 Best Kill Streak 2 | 1 2 2 Combat Bots Only 2 | . 2 2 Max Kills in Single Turn 1 | 1 1 1 Gunslinging . | . . . Exploded . | . . . Melee . | . . . Uniques/NPCs Destroyed . | . . . Combat | -11 -10 -10 -------- Run | Yrd Mat Sub Hostile Shots Fired 72 | . 36 36 Missed 23 | . 12 11 Hits 49 | . 24 25 Projectile 49 | . 24 25 Critical Strikes 2 | . . 2 Damage Taken 922 | . 292 630 Core 253 | . 82 171 Absorbed by Shields . | . . . Redirected to Shielding 37 | . . 37 Core Remaining (%) 100 | 100 . . Volleys Fired 72 | 6 45 21 Largest 2 | 2 2 2 Hottest 70 | 70 70 50 Shots Fired 142 | 11 90 41 Gun 107 | 11 66 30 Cannon 35 | . 24 11 Launcher . | . . . Special . | . . . Kinetic 116 | 6 69 41 Thermal 26 | 5 21 . Explosive . | . . . Electromagnetic . | . . . Robot Hit Streak 15 | 4 7 15 Robot Miss Streak 7 | 2 7 2 Penetration Max . | . . . Secondary Targets 1 | . . 1 Max Gunslinging Chain 1 | . . 1 Shots Hit Robots 89 | 6 50 33 Core Hits 33 | 2 24 7 Critical Kills 1 | . . 1 Critical Parts Destroyed . | . . . Critical Strikes 2 | . . 2 Destroy 2 | . . 2 Melee Attacks . | . . . Impact . | . . . Slashing . | . . . Piercing . | . . . Sneak Attacks . | . . . Combat Hostiles . | . . . Follow-up Attacks . | . . . Damage Inflicted 967 | 62 620 285 Guns 623 | 62 360 201 Cannons 344 | . 260 84 Explosions . | . . . Melee . | . . . Ramming . | . . . Kinetic 788 | 25 478 285 Thermal 179 | 37 142 . Explosive . | . . . Electromagnetic . | . . . Impact . | . . . Slashing . | . . . Piercing . | . . . Highest Corruption . | . . . Average Corruption . | . . . Corruption Purged . | . . . Corruption Blocked . | . . . Overload Shots . | . . . Overflow Damage . | . . . Projectiles . | . . . Explosions . | . . . Melee . | . . . Knockbacks 6 | . 4 2 Impact . | . . . Kinetic 6 | . 4 2 Secondary . | . . . Self-Inflicted Damage . | . . . Shots . | . . . Rammed . | . . . Targets Rammed . | . . . Kicked . | . . . Crushed . | . . . Highest Temperature 143 | 90 143 . Average Temperature 33 | 49 31 . Received Heat Transfer 255 | . 165 90 Siege Activations . | . . . Martial Activations . | . . . Shielding Activations . | . . . Robots Disrupted . | . . . Combat Hostiles . | . . . Robots Corrupted . | . . . Combat Hostiles . | . . . Parts Fried . | . . . Impact Corruptions . | . . . Robots Melted . | . . . Combat Hostiles . | . . . Parts Melted . | . . . Heat Transferred 518 | 111 407 . Parts Sabotaged . | . . . Parts Stolen . | . . . Parts Stripped . | . . . Power Chain Reactions . | . . . Alert | -11 -10 -10 ------- Run | Yrd Mat Sub Maximum Alert Level . | . . . Low Security (%) 100 | 100 100 . Level 1 . | . . . Level 2 . | . . . Level 3 . | . . . Level 4 . | . . . Level 5 . | . . . High Security . | . . . Max Security . | . . . Peak Influence 61 | 5 61 . Initial . | . . . Average 12 | . 13 . Influence Increases 245 | 5 240 . Destroy 0b10 Robot/C 140 | . 140 . Destroy 0b10 Robot/NC 25 | 5 20 . Destroy Leader 44 | . 44 . Successful Hack 21 | . 21 . Lose Combat Pursuer 15 | . 15 . Influence Decreases 245 | 5 240 . Time Decay 235 | 5 230 . Lost Part 10 | . 10 . Squads Dispatched 3 | . 3 . Investigation 1 | . 1 . Extermination . | . . . Reinforcement 2 | . 2 . Assault . | . . . Garrison . | . . . Intercept . | . . . Searches Triggered . | . . . Construction Impeded . | . . . Haulers Reinforced . | . . . Active Scanning Responses . | . . . Cargo Convoy Interrupts . | . . . Stealth | -11 -10 -10 --------- Run | Yrd Mat Sub Distress Signals 1 | . 1 . Communications Jammed . | . . . Distress Signals . | . . . Times Spotted 21 | . 17 4 Peak Tracking Total 3 | . 3 2 Tactical Retreats 1 | . 1 . Traps | -11 -10 -10 ------- Run | Yrd Mat Sub Traps Triggered 2 | . 1 1 Indirectly . | . . . Trap Hack Attempts . | . . . Triggered . | . . . Disarmed . | . . . Reprogrammed . | . . . Reused . | . . . Traps Extracted . | . . . Installed . | . . . Triggered . | . . . Machines | -11 -10 -10 ---------- Run | Yrd Mat Sub Machines Disabled . | . . . Max in Single Turn . | . . . Machines Repaired . | . . . Machines Dismantled . | . . . Machines Sabotaged . | . . . Overloaded Fab Kills . | . . . Hacking | -11 -10 -10 --------- Run | Yrd Mat Sub Machines Accessed 6 | . 6 . Terminals 6 | . 6 . Fabricators . | . . . Repair Stations . | . . . Recycling Units . | . . . Scanalyzers . | . . . Garrison Access . | . . . Total Hacks 16 | . 16 . Successful 9 | . 9 . Failed 7 | . 7 . Catastrophic 2 | . 2 . Database Lockouts . | . . . Manual 15 | . 15 . Terminals 16 | . 16 . Fabricators . | . . . Repair Stations . | . . . Recycling Units . | . . . Scanalyzers . | . . . Garrison Access . | . . . Terminal Hacks 8 | . 8 . Robot Analysis 4 | . 4 . Prototype ID Bank 3 | . 3 . Hauler Manifests 1 | . 1 . Fabricator Hacks . | . . . Repair Station Hacks . | . . . Recycling Unit Hacks . | . . . Scanalyzer . | . . . Garrison Access Hacks . | . . . Unauthorized Hacks 1 | . 1 . Terminals 1 | . 1 . Botnet 1 | . 1 . Fabricators . | . . . Repair Stations . | . . . Recycling Units . | . . . Scanalyzers . | . . . Garrison Access . | . . . Data Cores Recovered . | . . . Used . | . . . Hacking Detections 5 | . 5 . Full Trace Events 1 | . 1 . Feedback Events . | . . . Feedback Blocked . | . . . Robot Schematics Acquired . | . . . Robots Built . | . . . Authchips . | . . . Time . | . . . Total Robot Build Rating . | . . . Part Schematics Acquired . | . . . Parts Built . | . . . Authchips . | . . . Time . | . . . Total Part Build Rating . | . . . Parts Repaired . | . . . Time . | . . . Parts Recycled . | . . . Recycled Matter . | . . . Retrieved Matter . | . . . Retrieved Components . | . . . Parts Scanalyzed . | . . . Part Schematics Acquired . | . . . Parts Damaged . | . . . Bothacking | -11 -10 -10 ------------ Run | Yrd Mat Sub Used RIF Installer . | . . . Robots Hacked . | . . . Non-combat . | . . . Combat . | . . . Robot Hacks Applied . | . . . Relay Couplers Released . | . . . Fabnet Peak Effective % . | . . . Robots Rewired . | . . . Allies Hacked . | . . . Hacks Repelled . | . . . Allies | -11 -10 -10 -------- Run | Yrd Mat Sub Total Allies . | . . . Largest Group . | . . . Highest-Rated Group . | . . . Highest-Rated Ally . | . . . Total Orders . | . . . Ally Attacks . | . . . Total Damage . | . . . Kills . | . . . Allies Corrupted . | . . . Allies Melted . | . . . Intel | -11 -10 -10 ------- Run | Yrd Mat Sub Active Infowar (turns) 723 | 5 718 . Seismic 723 | 5 718 . Robot Analysis Total 4 | . 4 . Derelict Logs Recovered . | . . . Drone Launches . | . . . Drone Recoveries . | . . . Exploration | -11 -10 -10 ------------- Run | Yrd Mat Sub Turns Passed 1627 | 85 1257 285 Spaces Moved 777 | 48 618 111 Core 16 | 16 . . Treads . | . . . Legs 761 | 32 618 111 Wheels . | . . . Hover . | . . . Flight . | . . . Fastest Speed 50 | 50 120 190 Average Speed 175 | 110 177 190 Slowest Speed 190 | 150 190 190 Overloaded Moves . | . . . Propulsion Burnouts . | . . . Robots Hopped . | . . . Potential Cave-ins . | . . . Cave-ins Triggered . | . . . Exploration Rate (%) 38 | 4 96 15 Regions Visited 2 Branch Regions 1 Pre-discovered Areas . | . . . Known Exits Taken . | . . . Unknown Exits Taken 2 | 1 1 . Scrap Searched . | . . . Spaces Dug . | . . . Terrain Destroyed . | . . . Melee . | . . . Projectile . | . . . AOE . | . . . Terrain Rammed . | . . . Walls Destroyed . | . . . Machines Disabled . | . . . Actions | -11 -10 -10 --------- Run | Yrd Mat Sub Total 915 | 68 699 148 Wait 24 | . 11 13 Move 775 | 47 617 111 Hop . | . . . Pick Up 22 | 8 14 . Fast Attach 7 | 5 2 . Attach 5 | 2 . 3 Detach . | . . . Swap 3 | . 3 . Drop 7 | . 7 . Fire 72 | 6 45 21 Melee . | . . . Ram . | . . . Kick . | . . . Crush . | . . . Escape Stasis . | . . . Rewire . | . . . Trap . | . . . Miscellaneous . | . . . Route ------- -11/Scrapyard -10/Materials (discovered 4 exits: [*Mat x2] / [*Min] / [*Sub]) -10/Subcaves (discovered 1 exit: [*Mat]) History --------- Turn | Location | Event 20 | -11/Scrapyard | Discovered new exit (range 16) 86 | -11/Scrapyard | Entered Materials 87 | -10/Materials | Met a group of wandering Federalists 273 | -10/Materials | Discovered new exit (range 8) 307 | -10/Materials | Build established: Mutant 683 | -10/Materials | Discovered new exit (range 12) 759 | -10/Materials | Discovered new exit (range 3) 1272 | -10/Materials | Discovered new exit (range 7) 1343 | -10/Materials | Entered Subcaves 1344 | -10/Subcaves | Ambushed by Subdwellers from Twisted Machinery 1344 | -10/Subcaves | Continued accompanying wandering Federalists (3) 1344 | -10/Subcaves | Approached by a straggling Scientist 1388 | -10/Subcaves | Lost 3 allies 1500 | -10/Subcaves | Core integrity fell below 50% 1522 | -10/Subcaves | Core integrity fell below 20% 1529 | -10/Subcaves | Discovered new exit (range 15) 1538 | -10/Subcaves | Lost 3 parts (1n2w) 1628 | -10/Subcaves | Destroyed by Shrapnel Trap Last Messages --------------- 01384_ Acquired 4 matter. BE-48H(c): "I think it's somewhere northeast of here" 01407_ VT-RXT(R) destroyed. BE-48H(c): "I think it's somewhere northeast of here" 01497_ Lgt. Cannon destroyed. 01499_ Lgt. Assault Rifle destroyed. 01507_ Aluminum Leg destroyed. 01510_ JW-A65(R) suffers critical hit (Destroy). 01510_ JW-A65(R) destroyed. 01510_ Switching to secondary target: XG-TDB(R). 01510_ XG-TDB(R) suffers critical hit (Destroy). 01526_ XG-TDB(R) destroyed. 01529_ EXIT=FOUND BE-48H(c): "I think it's somewhere east of here" 01628_ Triggered Shrapnel Trap. 01628_ An expanding cloud of shrapnel blasts out in all directions. Map ----- +----------------------------------------------------+ | ?????????????????????????????????????????????????? | | ?????????????????????????????????????????????????? | | ?????????????????????????????????????????????????? | | ?????????????????????????????????????????????????? | | ?????????????????????????????????????????????????? | | ?????????????????????????????????????????????????? | | ?????????????????????????????????????????????????? | | ?????????????????????????????????????????????????? | | ?????????????????????????????????????????????????? | | ?????????????????????????????????????????????????? | | ?????????????????????????????????????????????????? | | ?????????????????????????????????????????????????? | | ?????????????????????????????????????????????????? | | ???????????????????????????????? ????????????????? | | ???????" ?????????????????????? "????????????????? | | ??????# #???????????????????? ????????????????? | | ??????# #####???###???????? ?????????????????? | | ?????## # ##?# ##??????# ??????????????????? | | ?????# #?# ##????? #??????????????????? | | ??????? # ### ##??? ???????????????????? | | ????????# # #??# ##??????????????????? | | ????????# # #?# #??????????????????? | | ????????# ## ##?????????????????? | | ????????## c # ##????????????????? | | ????????# ##???????????????? | | ???????### @ #???????????????? | | ??????## ## ## # #???????????????? | | ??????? # ######## ## ^ #??????????????? | | ????????# # ##??????## ##??? #??????????????? | | ????????# #?????????##?????????????????????? | | ????????## ##???????????????????????????????? | | ???????### ##??????????????????????????????? | | ???????# #??????????????????????????????? | | ???????#### ####??????????????????????????????? | | ??????????## ##?????????????????????????????????? | | ?????????### ##??????????????????????????????????? | | ????????## #???????????????????????????????????? | | ???????## #???????????????????????????????????? | | ???????# ##??????????????????????????????????? | | ???????# #??????????????????????????????????? | | ???????## ##??????????????????????????????????? | | ????????## ####?????????????????????????????????? | | ????????# # ###???????????????????????????????? | | ????????## #???????????????????????????????? | | ?????????# #???????????????????????????????? | | ?????????##### ##???????????????????????????????? | | ????????????# #???????????????????????????????? | | ????????????# #???????????????????????????????? | | ????????????## #???????????????????????????????? | | ????????????# #???????????????????????????????? | +----------------------------------------------------+ Best States ------------- Heat Dissipation 25 Energy Generation 10 Energy Capacity 125 Matter Stores 300 Matter Capacity 300 Sight Range 16 Terrain Scan Density 10 Propulsion Shielding 33 Evasion (%) 55 Item Schematics ----------------- None Robot Schematics ------------------ None Fabricated ------------ Nothing Repaired ---------- Nothing Alien Tech Used ----------------- None Achievements -------------- None Challenges ------------ None Game ------ Seed DisassembledIonicSabre Manual? 0 Play Time 00:08:52 Cumulative 205.8 hours Start 2025.10.17 @ 11:52:21 End 2025.10.17 @ 12:00:03 Sessions 1 Manual Loads 0 Difficulty Rogue Special Mode None Game No. 258 Rogue 258 Adventurer 0 Explorer 0 Win Type - Total 3 Types 3/0/0/0/0/0/0/0/0/0 Lore% 71 Gallery% 57 Achievement% 55 Wizard Run 0 Options --------- Layout 1 ASCII 0 Keyboard 1 Movement Numpad Keybinds 0 Fullscreen 1 Font 24/Smallcaps Map View 50x35 Zoom Use 0% Tactical HUD 1 Map Filters NONE Filters NONE Steam 1 RUN: 9cdf7fff-b861-42f5-88d8-7308be5f4f60